Cogmind - Beta 15 @@@ ROGUE MODE // 2025.05.17 @ 12:05:44 Player: Cess183 Result: Destroyed by 6E-2BP(R) with Subdweller Shrapnel Launcher Performance ------------- Evolutions (0) 0 Regions Visited (2) 400 Robots Destroyed (14) 70 Value Destroyed (261) 261 Prototype IDs (0) 0 Alien Tech Used (0) 0 Bonus (0) 0 TOTAL SCORE: 731 Bonus ------- None Cogmind --------- Core Integrity 0/250 Matter 278/300 Energy 250/250 System Corruption 0% Temperature Cool (0) Movement Rolling (105) Ox1 Location -10/Subcaves Parts ------- > --- POWER (1) -------- Ion Engine > --- PROPULSION (2) --- Wheel Compact Wheel > --- UTILITY (2) ------ Large Storage Unit Seismic Detector > --- WEAPON (2) ------- Light Assault Rifle Mini Grenade Launcher > --- INVENTORY (15) --- Wheel Medium Matter Pod (22) Structural Scanner Subdweller Optics Improved Terrain Scanner Improved Terrain Scanner Scrap Shield Mini Grenade Launcher Mini Grenade Launcher Mini Grenade Launcher Scrap Shield Fragment (26) Peak State ------------ > --- POWER ------------ Light Nuclear Core > --- PROPULSION ------- Wheel Compact Wheel > --- UTILITY ---------- Large Storage Unit Seismic Detector > --- WEAPON ----------- Assault Rifle Light Assault Rifle > --- INVENTORY -------- Ion Engine Wheel Medium Matter Pod Structural Scanner Improved Terrain Scanner Improved Terrain Scanner Scrap Shield Mini Grenade Launcher Mini Grenade Launcher Mini Grenade Launcher Mini Grenade Launcher [Rating: 11] Favorites ----------- Power Ion Engine Engine Ion Engine Power Core Light Nuclear Core Propulsion Compact Wheel Wheel Compact Wheel Utility Small Storage Unit Device Structural Scanner Storage Small Storage Unit Weapon Assault Rifle Ballistic Gun Assault Rifle Launcher Mini Grenade Launcher Build | -11 -10 -10 ------- Run | Yrd Mat Sub Slots Evolved . | . . . Power . | . . . Propulsion . | . . . Utility . | . . . Weapon . | . . . Parts Attached 17 | 8 7 2 Power 4 | 1 2 1 Engine 3 | 1 1 1 Core 1 | . 1 . Reactor . | . . . Propulsion 4 | 2 2 . Treads . | . . . Leg . | . . . Wheel 4 | 2 2 . Hover . | . . . Flight . | . . . Utility 5 | 2 3 . Device 3 | 1 2 . Storage 2 | 1 1 . Processor . | . . . Hackware . | . . . Protection . | . . . Artifact . | . . . Weapon 4 | 3 . 1 Energy Gun . | . . . Energy Cannon . | . . . Ballistic Gun 3 | 3 . . Ballistic Cannon . | . . . Launcher 1 | . . 1 Special Weapon . | . . . Impact Weapon . | . . . Slashing Weapon . | . . . Piercing Weapon . | . . . Special Melee Weapon . | . . . Unidentified Prototypes . | . . . Parts Lost 5 | . 3 2 Power 2 | . 1 1 Propulsion 1 | . 1 . Utility . | . . . Weapon 2 | . 1 1 Highest Loss Streak 2 | . 1 2 To Critical Strikes . | . . . Average Backups 7 | 3 7 10 Power . | . 1 . Propulsion 2 | 1 2 1 Utility 3 | . 3 5 Weapon 1 | . 1 3 Tool/Special . | . . . Unused Backups 10 | . 2 8 Power . | . . . Propulsion 3 | . 2 1 Utility 4 | . . 4 Weapon 3 | . . 3 Tool/Special . | . . . Average Slot Usage (%) 98 | . 98 98 Engine 9 | . 9 10 Core 3 | . 4 1 Wheel 27 | . 27 28 Device 14 | . 14 14 Storage 14 | . 14 14 Ballistic Gun 25 | . 27 15 Launcher 2 | . . 12 Peak Build Rating 11 | 10 10 11 Average Rating 8 | 6 8 9 On Entrance 6 | . 10 10 Naked Turns . | . . . Heaviest Build 29 | 15 29 29 Greatest Support 32 | 32 32 26 Greatest Overweight (x) 1 | . 1 1 Average Overweight (x) . | . . . Largest Inventory Capacity 15 | 8 15 15 Average Capacity 10 | 7 9 15 Most Carried 12 | 8 11 12 Average Carried 8 | 3 8 11 Final Capacity 15 | 8 15 15 Final Carried 12 | 8 10 12 Class Distribution -------------------- 100% | Mutant Dominant Class ---------------- Mutant | -10/Materials Mutant | -10/Subcaves Resources | -11 -10 -10 ----------- Run | Yrd Mat Sub Matter Collected 585 | 326 207 52 Remotely . | . . . Salvage Created 346 | 108 223 15 Parts 28 | 11 16 1 Haulers Intercepted . | . . . Recyclers Shooed . | . . . Parts Field Recycled . | . . . Retrieved Matter . | . . . Parts Self-Destructed . | . . . Prevented . | . . . Kills | -11 -10 -10 ------- Run | Yrd Mat Sub Combat Hostiles Destroyed 7 | . 6 1 Guns 7 | . 6 1 Classes Destroyed 6 | 1 4 1 Worker 1 | . 1 . Tunneler 5 | 5 . . Watcher 1 | . 1 . Swarmer 2 | . 2 . Grunt 4 | . 4 . Subdweller 1 | . . 1 Best Kill Streak 3 | 3 2 1 Combat Bots Only 2 | . 2 1 Max Kills in Single Turn 1 | 1 1 1 Gunslinging . | . . . Exploded . | . . . Melee . | . . . Uniques/NPCs Destroyed . | . . . Combat | -11 -10 -10 -------- Run | Yrd Mat Sub Hostile Shots Fired 88 | . 75 13 Missed 27 | . 22 5 Hits 61 | . 53 8 Projectile 61 | . 53 8 AOE 1 | . . 1 Critical Strikes 1 | . . 1 Damage Taken 799 | . 554 245 Core 287 | . 177 110 Absorbed by Shields . | . . . Core Remaining (%) 100 | 100 . . Volleys Fired 43 | 8 27 8 Largest 2 | 2 2 2 Hottest 50 | 40 40 50 Shots Fired 83 | 16 54 13 Gun 82 | 16 54 12 Cannon . | . . . Launcher 1 | . . 1 Special . | . . . Kinetic 82 | 16 54 12 Thermal . | . . . Explosive 1 | . . 1 Electromagnetic . | . . . Robot Hit Streak 5 | 5 3 4 Robot Miss Streak 6 | 2 6 2 Penetration Max . | . . . Secondary Targets . | . . . Shots Hit Robots 40 | 9 23 8 Core Hits 20 | 5 13 2 Critical Kills . | . . . Critical Parts Destroyed . | . . . Critical Strikes . | . . . Melee Attacks . | . . . Impact . | . . . Slashing . | . . . Piercing . | . . . Sneak Attacks . | . . . Combat Hostiles . | . . . Follow-up Attacks . | . . . Damage Inflicted 509 | 130 295 84 Guns 484 | 130 295 59 Cannons . | . . . Explosions 25 | . . 25 Melee . | . . . Ramming . | . . . Kinetic 484 | 130 295 59 Thermal . | . . . Explosive 25 | . . 25 Electromagnetic . | . . . Impact . | . . . Slashing . | . . . Piercing . | . . . Highest Corruption . | . . . Average Corruption . | . . . Corruption Purged . | . . . Corruption Blocked . | . . . Overload Shots . | . . . Overflow Damage . | . . . Projectiles . | . . . Explosions . | . . . Melee . | . . . Knockbacks . | . . . Impact . | . . . Kinetic . | . . . Secondary . | . . . Self-Inflicted Damage . | . . . Shots . | . . . Rammed . | . . . Targets Rammed . | . . . Kicked . | . . . Crushed . | . . . Highest Temperature 271 | 6 10 271 Average Temperature 64 | 6 5 151 Received Heat Transfer 595 | . 255 340 Siege Activations . | . . . Martial Activations . | . . . Shielding Activations . | . . . Robots Disrupted . | . . . Combat Hostiles . | . . . Robots Corrupted . | . . . Combat Hostiles . | . . . Parts Fried . | . . . Impact Corruptions . | . . . Robots Melted . | . . . Combat Hostiles . | . . . Parts Melted . | . . . Heat Transferred . | . . . Parts Sabotaged . | . . . Parts Stolen . | . . . Parts Stripped . | . . . Power Chain Reactions . | . . . Alert | -11 -10 -10 ------- Run | Yrd Mat Sub Maximum Alert Level . | . . . Low Security (%) 100 | 100 100 . Level 1 . | . . . Level 2 . | . . . Level 3 . | . . . Level 4 . | . . . Level 5 . | . . . High Security . | . . . Max Security . | . . . Peak Influence 62 | 10 62 . Initial . | . . . Average 12 | 1 14 . Influence Increases 218 | 25 193 . Destroy 0b10 Robot/C 120 | . 120 . Destroy 0b10 Robot/NC 35 | 25 10 . Destroy Leader 32 | . 32 . Destroy Structure 1 | . 1 . Lose Combat Pursuer 30 | . 30 . Influence Decreases 218 | 25 193 . Time Decay 198 | 25 173 . Lost Part 20 | . 20 . Squads Dispatched 1 | . 1 . Investigation . | . . . Extermination . | . . . Reinforcement 1 | . 1 . Assault . | . . . Garrison . | . . . Intercept . | . . . Searches Triggered . | . . . Construction Impeded . | . . . Haulers Reinforced . | . . . Active Scanning Responses . | . . . Cargo Convoy Interrupts . | . . . Stealth | -11 -10 -10 --------- Run | Yrd Mat Sub Distress Signals . | . . . Communications Jammed . | . . . Distress Signals . | . . . Times Spotted 17 | . 11 6 Peak Tracking Total 6 | . 6 3 Tactical Retreats 2 | . 2 . Traps | -11 -10 -10 ------- Run | Yrd Mat Sub Traps Triggered . | . . . Indirectly . | . . . Trap Hack Attempts . | . . . Triggered . | . . . Disarmed . | . . . Reprogrammed . | . . . Reused . | . . . Traps Extracted . | . . . Installed . | . . . Triggered . | . . . Machines | -11 -10 -10 ---------- Run | Yrd Mat Sub Machines Disabled . | . . . Max in Single Turn . | . . . Machines Repaired . | . . . Machines Dismantled . | . . . Machines Sabotaged . | . . . Overloaded Fab Kills . | . . . Hacking | -11 -10 -10 --------- Run | Yrd Mat Sub Machines Accessed 2 | . 2 . Terminals 1 | . 1 . Fabricators . | . . . Repair Stations . | . . . Recycling Units 1 | . 1 . Scanalyzers . | . . . Garrison Access . | . . . Total Hacks 4 | . 4 . Successful 3 | . 3 . Failed 1 | . 1 . Catastrophic . | . . . Database Lockouts . | . . . Manual 2 | . 2 . Terminals 3 | . 3 . Fabricators . | . . . Repair Stations . | . . . Recycling Units 1 | . 1 . Scanalyzers . | . . . Garrison Access . | . . . Terminal Hacks 2 | . 2 . Record 2 | . 2 . Fabricator Hacks . | . . . Repair Station Hacks . | . . . Recycling Unit Hacks 1 | . 1 . Report Inventory 1 | . 1 . Scanalyzer . | . . . Garrison Access Hacks . | . . . Unauthorized Hacks . | . . . Terminals . | . . . Fabricators . | . . . Repair Stations . | . . . Recycling Units . | . . . Scanalyzers . | . . . Garrison Access . | . . . Data Cores Recovered . | . . . Used . | . . . Hacking Detections . | . . . Full Trace Events . | . . . Feedback Events . | . . . Feedback Blocked . | . . . Robot Schematics Acquired . | . . . Robots Built . | . . . Authchips . | . . . Time . | . . . Total Robot Build Rating . | . . . Part Schematics Acquired . | . . . Parts Built . | . . . Authchips . | . . . Time . | . . . Total Part Build Rating . | . . . Parts Repaired . | . . . Time . | . . . Parts Recycled . | . . . Recycled Matter . | . . . Retrieved Matter . | . . . Retrieved Components . | . . . Parts Scanalyzed . | . . . Part Schematics Acquired . | . . . Parts Damaged . | . . . Bothacking | -11 -10 -10 ------------ Run | Yrd Mat Sub Used RIF Installer . | . . . Robots Hacked . | . . . Non-combat . | . . . Combat . | . . . Robot Hacks Applied . | . . . Relay Couplers Released . | . . . Fabnet Peak Effective % . | . . . Robots Rewired . | . . . Allies Hacked . | . . . Hacks Repelled . | . . . Allies | -11 -10 -10 -------- Run | Yrd Mat Sub Total Allies . | . . . Largest Group . | . . . Highest-Rated Group . | . . . Highest-Rated Ally . | . . . Total Orders . | . . . Ally Attacks . | . . . Total Damage . | . . . Kills . | . . . Allies Corrupted . | . . . Allies Melted . | . . . Intel | -11 -10 -10 ------- Run | Yrd Mat Sub Active Infowar (turns) 1216 | 66 929 221 Terrain 305 | 66 239 . Structural 457 | . 457 . Seismic 454 | . 233 221 Robot Analysis Total . | . . . Derelict Logs Recovered . | . . . Drone Launches . | . . . Drone Recoveries . | . . . Exploration | -11 -10 -10 ------------- Run | Yrd Mat Sub Turns Passed 1308 | 158 929 221 Spaces Moved 1058 | 115 785 158 Core 2 | 2 . . Treads . | . . . Legs . | . . . Wheels 1056 | 113 785 158 Hover . | . . . Flight . | . . . Fastest Speed 50 | 50 90 90 Average Speed 100 | 99 100 104 Slowest Speed 105 | 100 105 105 Overloaded Moves . | . . . Propulsion Burnouts . | . . . Robots Hopped . | . . . Potential Cave-ins . | . . . Cave-ins Triggered . | . . . Exploration Rate (%) 17 | 5 36 11 Regions Visited 2 Branch Regions 1 Pre-discovered Areas . | . . . Known Exits Taken . | . . . Unknown Exits Taken 2 | 1 1 . Scrap Searched . | . . . Spaces Dug . | . . . Terrain Destroyed 9 | . . 9 Melee . | . . . Projectile . | . . . AOE 9 | . . 9 Terrain Rammed . | . . . Walls Destroyed . | . . . Machines Disabled . | . . . Actions | -11 -10 -10 --------- Run | Yrd Mat Sub Total 1217 | 140 874 203 Wait 70 | . 39 31 Move 1056 | 114 784 158 Hop . | . . . Pick Up 21 | 9 9 3 Fast Attach 6 | 6 . . Attach 7 | 2 3 2 Detach 1 | 1 . . Swap 5 | . 5 . Drop 6 | . 6 . Fire 43 | 8 27 8 Melee . | . . . Ram . | . . . Kick . | . . . Crush . | . . . Escape Stasis . | . . . Rewire 2 | . 1 1 Trap . | . . . Miscellaneous . | . . . Route ------- -11/Scrapyard -10/Materials -10/Subcaves (discovered 1 exit: [*Mat]) History --------- Turn | Location | Event 16 | -11/Scrapyard | Discovered new exit (range 16) 159 | -11/Scrapyard | Entered Materials 315 | -10/Materials | Build established: Mutant 712 | -10/Materials | Core integrity fell below 50% 899 | -10/Materials | Discovered new exit (range 8) 1088 | -10/Materials | Entered Subcaves 1105 | -10/Subcaves | Core integrity fell below 20% 1169 | -10/Subcaves | Discovered new exit (range 15) 1307 | -10/Subcaves | Ambushed by swarm of Subdwellers 1309 | -10/Subcaves | Destroyed by 6E-2BP(R) with Subdweller Shrapnel Launcher Last Messages --------------- 01125_ Acquired 15 matter. 01131_ Acquired Sub. Optics. 01132_ Acquired 29 matter. 01135_ Acquired 2 matter. 01137_ Acquired 4 matter. 01169_ EXIT=FOUND 01241_ Attempting to rewire M5-RSK(R). 01241_ M5-RSK(R) is broken beyond repair. 01247_ Acquired Scrap Shield Fragment. A mess of Twisted Machinery falls from the cavern ceiling. KT-ZT4(R) comes tumbling into view. 01307_ 4V-299(h): "The Subs are coming!" 01307_ KT-ZT4(R) suffers critical hit (Destroy). 01307_ KT-ZT4(R) destroyed. 01308_ JM-CYP(g): "Sorry we're late! Had another grouchy Sub to deal with. Who's the new fellow?" 01309_ 6E-2BP(R) emerges from the Twisted Machinery. Map ----- +----------------------------------------------------+ | ????????????????????????????????????????? | | ????????????????????????????????????????? | | ????????????????????????????????????????? | | ????????????????????????????????????????? | | ????????????????????????????????????????? | | ????????????????????????????????????????? | | ????????????????????????????????????????? | | ????????????????????????????????????????? | | ????????????????????????????????????????? | | ????????????????????????????????????????? | | ?????????????????? ?????????????????????? | | ?????????????????? #????????????????????? | | ????????????????? ????????????????????? | | ????????????????? #????????????????????? | | ????????????????? ????????????????????? | | ????????????????? #????????????????????? | | ????????????????? #????????????????????? | | ???????????????? #????????????????????? | | ???????????????? ????????????????????? | | ???????????????## #????????????????????? | | ??????????????## #???#????????????????? | | ??????????????#" #?? ###??????????????? | | ??????????????#" ### #??????????????? | | ??????????????#" " #???????????????? | | ???????????????# """ ##??????????????? | | ??????????????##@ " #??????????????? | | ??????????????# # #???????????????? | | ??????????????# h #?????????????????? | | ??????????????## # ##???????????????? | | ??????????????# ## "#??????????????? | | ??????????????## #? ##??????????????? | | ??????????????## #?# ##??????????????? | | ??????????????# #??# g##?????????????? | | ??????????????## ###?# ##????????????? | | ???????????????# [% ### ####?????? ? | | ???????????????#=&! ## ####?? ? | | ???????????????#"R* ## | | ???????????????#"## | | ???????????????##?# # " | | ??????????????????# "" ### | | ??????????????????# #### | | ?????????????????## " " ##### | | ?????????????????# ### | | ?????????????????## " ## | | ??????????????????###### | | ???????????????????????## | | ????????????????????????## | | ???????????????#####???#### ## | | ??????????????## ##### ## ##?? ### | | ??????????????# ## ##????#??# | +----------------------------------------------------+ Best States ------------- Heat Dissipation 25 Energy Generation 14 Energy Capacity 250 Matter Stores 300 Matter Capacity 300 Sight Range 16 Terrain Scan Range 16 Terrain Scan Density 10 Evasion (%) 42 Item Schematics ----------------- None Robot Schematics ------------------ None Fabricated ------------ Nothing Repaired ---------- Nothing Alien Tech Used ----------------- None Achievements -------------- None Challenges ------------ None Game ------ Seed LatentTractorNanovents Manual? 0 Play Time 00:19:27 Cumulative 7.2 hours Start 2025.05.17 @ 11:46:28 End 2025.05.17 @ 12:05:44 Sessions 1 Manual Loads 0 Difficulty Rogue Special Mode None Game No. 9 Rogue 9 Adventurer 0 Explorer 0 Win Type - Total 0 Types 0/0/0/0/0/0/0/0/0/0 Lore% 5 Gallery% 9 Achievement% 7 Wizard Run 0 Options --------- Layout 1 ASCII 0 Keyboard 1 Movement Vi Keybinds 0 Fullscreen 1 Font 24/Smallcaps Map View 50x35 Zoom Use 0% Tactical HUD 1 Map Filters NONE Filters NONE Steam 1 RUN: 4101cd4b-f9f1-4e98-819c-bec39719fd3d